fUST/lending_fUST_20240619
["ID","MTS","AMOUNT","RATE_DAILY","PERIOD"]
[329839613,1718735454532,-1330.68,0.00019726,2]
[329839614,1718735454542,-607.91401286,0.000198,2]
[329839615,1718735454552,-620.00027251,0.00019915,2]
[329839616,1718735454562,-502.79189169,0.00019982,2]
[329839617,1718735454572,-635.22515972,0.00019984,2]
[329839618,1718735454581,-952.8272795,0.00019985,2]
[329839619,1718735454591,-257.8,0.00019986,2]
[329839620,1718735454601,-812.64963227,0.00019988,3]
[329839621,1718735454610,-500.0,0.00019988,2]
[329839622,1718735454620,-294.6428464,0.00019988,2]
[329839623,1718735454630,-500.0,0.00019989,2]
[329839624,1718735454639,-500.0,0.00019989,2]
[329839625,1718735454649,-2211.88,0.00019989,2]
[329839626,1718735454658,-2211.88,0.00019989,2]
[329839627,1718735454667,-2211.88,0.00019989,2]
[329839628,1718735454679,-103262.52740549,0.0001999,2]
[329839629,1718735454690,-500.0,0.00019999,2]
[329839630,1718735454700,-500.0,0.00019999,2]
[329839631,1718735454709,-500.0,0.00019999,2]
[329839632,1718735454719,-500.0,0.00019999,2]
[329839633,1718735454728,-500.0,0.00019999,2]
[329839634,1718735454738,-609.65966028,0.00019999,2]
[329839635,1718735454747,-2211.88,0.00019999,2]
[329839636,1718735454757,-2211.88,0.00019999,2]
[329839637,1718735454767,-2211.88,0.00019999,2]
[329839638,1718735454776,-2211.88,0.00019999,2]
[329839639,1718735454786,-2211.89800279,0.00019999,2]
[329839640,1718735454795,-10625.69266077,0.0002,2]
[329839641,1718735454892,-3581.83744021,0.0002,2]
[329839642,1718735454904,-953.23570508,0.0002,2]
[329839643,1718735454915,-35286.83543039,0.0002,2]
[329839644,1718735454930,-878.42385116,0.0002,2]
[329839679,1718736356132,-334.59552997,0.00016235,2]
[329839680,1718736356154,-33.83944184,0.00016236,4]
[329839689,1718736426131,-496.03646861,0.00016236,4]
[329839690,1718736427227,-2593.32526775,0.00016236,4]
[329839691,1718736427248,-287.0,0.00016236,2]
[329839692,1718736427268,-4532.1563611,0.00016237,2]
[329839763,1718736439280,-3333.74641503,0.00016237,2]
[329839764,1718736439436,-266.16478461,0.00016338,2]
[329839765,1718736439468,-1212.99011581,0.00016338,2]
[329839766,1718736439490,-249.74185975,0.00016437,4]
[329839767,1718736439511,-500.0,0.00016438,2]
[329839768,1718736439532,-500.0,0.00016438,2]
[329839769,1718736439553,-500.0,0.00016438,2]
[329839770,1718736439574,-500.0,0.00016438,2]
[329839771,1718736439595,-500.0,0.00016438,2]
[329839772,1718736439619,-303.25960093,0.00016438,2]
[329839773,1718736564167,6578.39346401,0.00015848,2]
[329839774,1718736564190,200.0,0.00015848,2]
[329839775,1718736564216,245.0,0.00015848,2]
[329839776,1718736566176,-175.23945367,0.00015848,2]
[329839777,1718736574210,-17701.36708232,0.00015848,2]
[329839791,1718736633340,-1061.36635136,0.00016338,2]
[329839792,1718736633350,-1432.7450532,0.00016437,2]
[329839793,1718736633359,-498.48277629,0.00016438,2]
[329839794,1718736633371,-1.51722371,0.00016438,2]
[329839796,1718736633381,-250.0,0.00016438,2]
[329839798,1718736633390,-500.0,0.00016438,2]
[329839800,1718736633399,-19.83334125,0.00016438,2]
[329839853,1718736641340,-500.0,0.00016438,2]
[329839854,1718736641349,-500.0,0.00016438,2]
[329839855,1718736641359,-500.0,0.00016438,2]
[329839856,1718736641367,-38.7419853,0.00016438,2]
[329839857,1718736641379,-422.4725303,0.00016438,2]
[329839858,1718736641388,-500.0,0.00016438,2]
[329839859,1718736641397,-500.0,0.00016438,2]
[329839860,1718736641406,-286.11923502,0.00016438,2]
[329839861,1718736641417,-113.60488413,0.00016438,2]
[329839862,1718736641426,-500.0,0.00016438,2]
[329839863,1718736641437,-500.0,0.00016438,2]
[329839864,1718736641448,-145.81057564,0.00016438,2]
[329839865,1718736641459,-354.18942436,0.00016438,2]
[329839866,1718736641468,-500.0,0.00016438,2]
[329839867,1718736641477,-500.0,0.00016438,2]
[329839868,1718736641486,-500.0,0.00016438,2]
[329839869,1718736641495,-500.0,0.00016438,2]
[329839870,1718736641504,-500.0,0.00016438,2]
[329839871,1718736641513,-500.0,0.00016438,2]
[329839872,1718736641522,-500.0,0.00016438,2]
[329839873,1718736641535,-500.0,0.00016438,2]
[329839874,1718736641544,-500.0,0.00016438,2]
[329839875,1718736641553,-500.0,0.00016438,2]
[329839876,1718736641563,-385.09737426,0.00016438,2]
[329839877,1718736641576,-114.90262574,0.00016438,2]
[329839878,1718736641585,-500.0,0.00016438,2]
[329839879,1718736641595,-500.0,0.00016438,2]
[329839880,1718736641603,-380.09774026,0.00016438,2]
[329839881,1718736641615,-1938.02225974,0.00016438,2]
[329839882,1718736641624,-500.0,0.00016438,2]
[329839883,1718736641633,-261.17893482,0.00016438,2]
[329839884,1718736641643,-500.0,0.00016438,2]
[329839885,1718736641652,-500.0,0.00016438,2]
[329839886,1718736641661,-500.0,0.00016438,2]
[329839887,1718736641670,-500.0,0.00016438,2]
[329839888,1718736641680,-500.0,0.00016438,2]
[329839889,1718736641689,-8317.39,0.00016438,2]
[329839890,1718736641699,-500.0,0.00016438,2]
[329839891,1718736641708,-500.0,0.00016438,2]
[329839892,1718736641718,-500.0,0.00016438,2]
[329839893,1718736641727,-500.0,0.00016438,2]
[329839895,1718736641737,-500.0,0.00016438,2]
[329839897,1718736641747,-4970.02,0.00016438,2]
[329839899,1718736641756,-650.55,0.00016438,2]
[329839902,1718736641765,-500.0,0.00016438,2]
[329839904,1718736641774,-151.02911923,0.00016438,2]
[329839906,1718736641784,-500.0,0.00016438,2]
[329839908,1718736641793,-500.0,0.00016438,2]
[329839910,1718736641803,-1817.24,0.00016438,2]
[329839912,1718736641812,-377.73,0.00016438,2]
[329839914,1718736641822,-500.0,0.00016438,2]
[329839916,1718736641830,-500.0,0.00016438,2]
[329839918,1718736641839,-500.0,0.00016438,2]
[329839920,1718736641849,-500.0,0.00016438,2]
[329839922,1718736641858,-500.0,0.00016438,2]
[329839924,1718736641867,-500.0,0.00016438,2]
[329839926,1718736641877,-500.0,0.00016438,2]
[329839928,1718736641886,-1058.09,0.00016438,2]
[329839929,1718736641895,-500.0,0.00016438,2]
[329839931,1718736641905,-500.0,0.00016438,2]
[329839933,1718736641914,-500.0,0.00016438,2]
[329839935,1718736641924,-500.0,0.00016438,2]
[329839937,1718736641933,-500.0,0.00016438,2]
[329839940,1718736641943,-500.0,0.00016438,2]
[329839941,1718736641952,-200.37380339,0.00016438,2]
[329839943,1718736641961,-500.0,0.00016438,2]
[329839945,1718736641971,-500.0,0.00016438,2]
[329839947,1718736641980,-500.0,0.00016438,2]
[329839949,1718736641990,-500.0,0.00016438,2]
[329839951,1718736641999,-500.0,0.00016438,2]
[329839953,1718736642009,-1045.51,0.00016438,2]
[329839955,1718736642018,-500.0,0.00016438,2]
[329839957,1718736642028,-500.0,0.00016438,2]
[329839959,1718736642037,-500.0,0.00016438,2]
[329839961,1718736642046,-500.0,0.00016438,2]
[329839963,1718736642056,-885.99,0.00016438,2]
[329839965,1718736642065,-500.0,0.00016438,2]
[329839967,1718736642074,-500.0,0.00016438,2]
[329839969,1718736642083,-500.0,0.00016438,2]
[329839971,1718736642093,-500.0,0.00016438,2]
[329839973,1718736642102,-500.0,0.00016438,2]
[329839975,1718736642111,-500.0,0.00016438,2]
[329839976,1718736642120,-212.93182768,0.00016611,2]
[329839978,1718736642129,-500.0,0.00016711,2]
[329839980,1718736642139,-500.0,0.00016711,2]
[329839982,1718736642148,-500.0,0.00016711,2]
[329839984,1718736642157,-353.52069219,0.00016711,2]
[329839985,1718736642167,-500.0,0.00016711,2]
[329839986,1718736642176,-1197.35,0.00016711,2]
[329839987,1718736642185,-500.0,0.00016711,2]
[329839988,1718736642194,-500.0,0.00016711,2]
[329839989,1718736642203,-500.0,0.00016711,2]
[329839990,1718736642212,-500.0,0.00016711,2]
[329839991,1718736642221,-250.0,0.00016712,2]
[329839992,1718736642230,-500.0,0.00016712,2]
[329839993,1718736642239,-500.0,0.00016712,2]
[329839994,1718736642249,-500.0,0.00016712,2]
[329839995,1718736642258,-500.0,0.00016712,2]
[329839996,1718736642267,-500.0,0.00016712,2]
[329839997,1718736642276,-500.0,0.00016712,2]
[329839998,1718736642286,-500.0,0.00016712,2]
[329839999,1718736642296,-500.0,0.00016712,2]
[329840001,1718736642306,-500.0,0.00016712,2]
[329840003,1718736642315,-500.0,0.00016712,2]
[329840004,1718736642325,-500.0,0.00016712,2]
[329840005,1718736642334,-500.0,0.00016712,2]
[329840006,1718736642344,-500.0,0.00016712,2]
[329840007,1718736642354,-500.0,0.00016712,2]
[329840008,1718736642364,-500.0,0.00016712,2]
[329840009,1718736642374,-500.0,0.00016712,2]
[329840010,1718736642383,-500.0,0.00016712,2]
[329840011,1718736642393,-500.0,0.00016712,2]
[329840012,1718736642403,-500.0,0.00016712,2]
[329840013,1718736642412,-2318.12,0.00016712,2]
[329840014,1718736642421,-500.0,0.00016712,2]
[329840015,1718736642432,-500.0,0.00016712,2]
[329840016,1718736642441,-500.0,0.00016712,2]
[329840017,1718736642455,-500.0,0.00016712,2]
[329840018,1718736642465,-453.11913047,0.00016712,2]
[329840019,1718736642475,-500.0,0.00016712,2]
[329840020,1718736642484,-8317.39,0.00016712,2]
[329840021,1718736642495,-500.0,0.00016712,2]
[329840022,1718736642505,-500.0,0.00016712,2]
[329840023,1718736642514,-500.0,0.00016712,2]
[329840024,1718736642526,-500.0,0.00016712,2]
[329840025,1718736642537,-4970.02,0.00016712,2]
[329840026,1718736642545,-650.55,0.00016712,2]
[329840027,1718736642555,-500.0,0.00016712,2]
[329840028,1718736642564,-500.0,0.00016712,2]
[329840029,1718736642573,-500.0,0.00016712,2]
[329840030,1718736642582,-1817.24,0.00016712,2]
[329840031,1718736642593,-500.0,0.00016712,2]
[329840032,1718736642602,-500.0,0.00016712,2]
[329840033,1718736642611,-500.0,0.00016712,2]
[329840034,1718736642622,-500.0,0.00016712,2]
[329840035,1718736642631,-500.0,0.00016712,2]
[329840036,1718736642640,-1058.09,0.00016712,2]
[329840037,1718736642649,-500.0,0.00016712,2]
[329840038,1718736642660,-500.0,0.00016712,2]
[329840039,1718736642669,-500.0,0.00016712,2]
[329840040,1718736642678,-500.0,0.00016712,2]
[329840041,1718736642687,-500.0,0.00016712,2]
[329840042,1718736642697,-500.0,0.00016712,2]
[329840043,1718736642706,-500.0,0.00016712,2]
[329840044,1718736642715,-500.0,0.00016712,2]
[329840045,1718736642724,-500.0,0.00016712,2]
[329840046,1718736642733,-1045.51,0.00016712,2]
[329840047,1718736642742,-500.0,0.00016712,2]
[329840048,1718736642751,-500.0,0.00016712,2]
[329840049,1718736642761,-500.0,0.00016712,2]
[329840050,1718736642770,-500.0,0.00016712,2]
[329840051,1718736642876,-885.99,0.00016712,2]
[329840052,1718736642888,-500.0,0.00016712,2]
[329840053,1718736642898,-500.0,0.00016712,2]
[329840054,1718736642907,-559.97,0.00016712,2]
[329840055,1718736642918,-500.0,0.00016712,2]
[329840056,1718736642927,-212.93182768,0.00016885,2]
[329840057,1718736642938,-500.0,0.00016984,2]
[329840058,1718736642948,-500.0,0.00016985,2]
[329840059,1718736642957,-500.0,0.00016985,2]
[329840060,1718736642967,-500.0,0.00016985,2]
[329840061,1718736642976,-500.0,0.00016985,2]
[329840062,1718736642985,-1197.35,0.00016985,2]
[329840063,1718736642995,-500.0,0.00016985,2]
[329840064,1718736643004,-500.0,0.00016985,2]
[329840065,1718736643013,-500.0,0.00016985,2]
[329840066,1718736643022,-500.0,0.00016985,2]
[329840067,1718736643031,-250.0,0.00016986,2]
[329840068,1718736643046,-500.0,0.00016986,2]
[329840069,1718736643055,-500.0,0.00016986,2]
[329840070,1718736643064,-500.0,0.00016986,2]
[329840071,1718736643073,-500.0,0.00016986,2]
[329840072,1718736643083,-500.0,0.00016986,2]
[329840073,1718736643092,-500.0,0.00016986,2]
[329840074,1718736643101,-500.0,0.00016986,2]
[329840075,1718736643110,-500.0,0.00016986,2]
[329840076,1718736643119,-500.0,0.00016986,2]
[329840077,1718736643128,-500.0,0.00016986,2]
[329840078,1718736643139,-500.0,0.00016986,2]
[329840079,1718736643148,-500.0,0.00016986,2]
[329840080,1718736643157,-500.0,0.00016986,2]
[329840081,1718736643167,-500.0,0.00016986,2]
[329840082,1718736643176,-500.0,0.00016986,2]
[329840083,1718736643185,-500.0,0.00016986,2]
[329840084,1718736643194,-500.0,0.00016986,2]
[329840085,1718736643204,-500.0,0.00016986,2]
[329840086,1718736643214,-2318.12,0.00016986,2]
[329840087,1718736643223,-500.0,0.00016986,2]
[329840088,1718736643232,-500.0,0.00016986,2]
[329840089,1718736643241,-500.0,0.00016986,2]
[329840090,1718736643251,-500.0,0.00016986,2]
[329840091,1718736643260,-500.0,0.00016986,2]
[329840092,1718736643270,-8317.39,0.00016986,2]
[329840093,1718736643279,-500.0,0.00016986,2]
[329840094,1718736643289,-500.0,0.00016986,2]
[329840095,1718736643298,-500.0,0.00016986,2]
[329840096,1718736643308,-500.0,0.00016986,2]
[329840097,1718736643317,-4970.02,0.00016986,2]
[329840098,1718736643326,-650.55,0.00016986,2]
[329840099,1718736643335,-500.0,0.00016986,2]
[329840100,1718736643344,-500.0,0.00016986,2]
[329840101,1718736643353,-500.0,0.00016986,2]
[329840102,1718736643363,-1817.24,0.00016986,2]
[329840103,1718736643372,-500.0,0.00016986,2]
[329840104,1718736643381,-500.0,0.00016986,2]
[329840105,1718736643391,-500.0,0.00016986,2]
[329840106,1718736643399,-500.0,0.00016986,2]
[329840107,1718736643409,-500.0,0.00016986,2]
[329840108,1718736643419,-1058.09,0.00016986,2]
[329840109,1718736643428,-438.52657256,0.00016986,2]
[329840110,1718736643443,-500.0,0.00016986,2]
[329840111,1718736643452,-341.54664359,0.00016986,2]
[329840112,1718736643462,-500.0,0.00016986,2]
[329840113,1718736643471,-500.0,0.00016986,2]
[329840114,1718736643483,-500.0,0.00016986,2]
[329840115,1718736643492,-500.0,0.00016986,2]
[329840116,1718736643501,-500.0,0.00016986,2]
[329840117,1718736643511,-500.0,0.00016986,2]
[329840118,1718736643523,-1045.51,0.00016986,2]
[329840119,1718736643534,-500.0,0.00016986,2]
[329840120,1718736643543,-199.52275779,0.00016986,2]
[329840121,1718736643552,-500.0,0.00016986,2]
[329840122,1718736643562,-500.0,0.00016986,2]
[329840123,1718736643571,-885.99,0.00016986,2]
[329840124,1718736643580,-500.0,0.00016986,2]
[329840125,1718736643590,-500.0,0.00016986,2]
[329840126,1718736643599,-212.93182768,0.0001716,2]
[329840127,1718736643608,-500.0,0.00017259,2]
[329840128,1718736643618,-500.0,0.00017259,2]
[329840129,1718736643627,-1197.35,0.00017259,2]
[329840130,1718736643637,-500.0,0.00017259,2]
[329840131,1718736643646,-500.0,0.00017259,2]
[329840132,1718736643655,-500.0,0.00017259,2]
[329840133,1718736643665,-500.0,0.00017259,2]
[329840134,1718736643674,-2776.33725017,0.0001726,15]
[329840135,1718736643683,-250.0,0.0001726,2]
[329840136,1718736643692,-500.0,0.0001726,2]
[329840137,1718736643702,-369.82725275,0.0001726,2]
[329840138,1718736643711,-399.46439245,0.0001726,2]
[329840139,1718736643720,-500.0,0.0001726,2]
[329840140,1718736643729,-500.0,0.0001726,2]
[329840141,1718736643738,-500.0,0.0001726,2]
[329840142,1718736643748,-500.0,0.0001726,2]
[329840143,1718736643758,-500.0,0.0001726,2]
[329840144,1718736643767,-500.0,0.0001726,2]
[329840145,1718736643776,-500.0,0.0001726,2]
[329840146,1718736643786,-500.0,0.0001726,2]
[329840147,1718736643795,-89.61491885,0.0001726,2]
[329840148,1718736643809,-501.17254749,0.0001726,2]
[329840149,1718736643819,-500.0,0.0001726,2]
[329840150,1718736643828,-500.0,0.0001726,2]
[329840151,1718736643838,-500.0,0.0001726,2]
[329840152,1718736643847,-500.0,0.0001726,2]
[329840153,1718736643856,-505.23228011,0.0001726,2]
[329840154,1718736643866,-505.53964394,0.0001726,2]
[329840155,1718736643876,-2318.12,0.0001726,2]
[329840156,1718736643886,-500.0,0.0001726,2]
[329840157,1718736643896,-500.0,0.0001726,2]
[329840158,1718736643906,-500.0,0.0001726,2]
[329840162,1718736643915,-500.0,0.0001726,2]
[329840164,1718736643925,-500.0,0.0001726,2]
[329840166,1718736643934,-8317.39,0.0001726,2]
[329840167,1718736643943,-500.0,0.0001726,2]
[329840168,1718736643952,-500.0,0.0001726,2]
[329840169,1718736643962,-500.0,0.0001726,2]
[329840170,1718736643971,-500.0,0.0001726,2]
[329840171,1718736643982,-4970.02,0.0001726,2]
[329840172,1718736643992,-650.55,0.0001726,2]
[329840173,1718736644003,-500.0,0.0001726,2]
[329840174,1718736644012,-500.0,0.0001726,2]
[329840175,1718736644022,-1817.24,0.0001726,2]
[329840176,1718736644036,-500.0,0.0001726,2]
[329840177,1718736644048,-363.18,0.0001726,2]
[329840178,1718736644060,-500.0,0.0001726,2]
[329840179,1718736644073,-500.0,0.0001726,2]
[329840180,1718736644085,-500.0,0.0001726,2]
[329840181,1718736644097,-1058.09,0.0001726,2]
[329840182,1718736644107,-370.23112999,0.0001726,2]
[329840183,1718736644119,-500.0,0.0001726,2]
[329840184,1718736644131,-500.0,0.0001726,2]
[329840185,1718736644142,-312.09194265,0.0001726,2]
[329840186,1718736644154,-500.0,0.0001726,2]
[329840187,1718736644165,-500.0,0.0001726,2]
[329840188,1718736644178,-500.0,0.0001726,2]
[329840189,1718736644190,-500.0,0.0001726,2]
[329840190,1718736644201,-1045.51,0.0001726,2]
[329840191,1718736644212,-500.0,0.0001726,2]
[329840192,1718736644225,-500.0,0.0001726,2]
[329840193,1718736644238,-885.99,0.0001726,2]
[329840194,1718736644249,-500.0,0.0001726,2]
[329840195,1718736644261,-598.21922168,0.0001726,2]
[329840196,1718736644272,-212.93182768,0.00017434,2]
[329840197,1718736644283,-500.0,0.00017533,2]
[329840198,1718736644296,-500.0,0.00017533,2]
[329840199,1718736644307,-500.0,0.00017533,2]
[329840200,1718736644318,-1197.35,0.00017533,2]
[329840201,1718736644329,-500.0,0.00017533,2]
[329840202,1718736644341,-500.0,0.00017533,2]
[329840203,1718736644352,-500.0,0.00017533,2]
[329840204,1718736644363,-500.0,0.00017533,2]
[329840205,1718736644374,-250.0,0.00017534,2]
[329840206,1718736644385,-500.0,0.00017534,2]
[329840207,1718736644395,-500.0,0.00017534,2]
[329840208,1718736644406,-500.0,0.00017534,2]
[329840209,1718736644418,-500.0,0.00017534,2]
[329840210,1718736644429,-272.57315558,0.00017534,2]
[329840211,1718736644442,-500.0,0.00017534,2]
[329840212,1718736644456,-500.0,0.00017534,2]
[329840213,1718736644468,-500.0,0.00017534,2]
[329840214,1718736644480,-500.0,0.00017534,2]
[329840215,1718736644492,-500.0,0.00017534,2]
[329840216,1718736644503,-500.0,0.00017534,2]
[329840217,1718736644514,-500.0,0.00017534,2]
[329840218,1718736644531,-500.0,0.00017534,2]
[329840219,1718736644543,-2318.12,0.00017534,2]
[329840220,1718736644556,-500.0,0.00017534,2]
[329840221,1718736644568,-500.0,0.00017534,2]
[329840222,1718736644579,-500.0,0.00017534,2]
[329840223,1718736644591,-500.0,0.00017534,2]
[329840224,1718736644601,-500.0,0.00017534,2]
[329840225,1718736644611,-8317.39,0.00017534,2]
[329840226,1718736644621,-500.0,0.00017534,2]
[329840227,1718736644631,-500.0,0.00017534,2]
[329840228,1718736644642,-500.0,0.00017534,2]
[329840229,1718736644654,-4970.02,0.00017534,2]
[329840230,1718736644665,-650.55,0.00017534,2]
[329840231,1718736644676,-500.0,0.00017534,2]
[329840232,1718736644689,-1817.24,0.00017534,2]
[329840233,1718736644699,-500.0,0.00017534,2]
[329840234,1718736644710,-500.0,0.00017534,2]
[329840235,1718736644721,-500.0,0.00017534,2]
[329840236,1718736644732,-500.0,0.00017534,2]
[329840237,1718736644743,-1058.09,0.00017534,2]
[329840238,1718736644754,-500.0,0.00017534,2]
[329840239,1718736644766,-500.0,0.00017534,2]
[329840240,1718736644777,-500.0,0.00017534,2]
[329840241,1718736644787,-500.0,0.00017534,2]
[329840242,1718736644797,-500.0,0.00017534,2]
[329840243,1718736644808,-500.0,0.00017534,2]
[329840244,1718736644818,-1045.51,0.00017534,2]
[329840245,1718736644830,-500.0,0.00017534,2]
[329840246,1718736644840,-500.0,0.00017534,2]
[329840247,1718736644852,-885.99,0.00017534,2]
[329840248,1718736644863,-500.0,0.00017534,2]
[329840249,1718736644873,-212.93182768,0.00017708,2]
[329840250,1718736644885,-500.0,0.00017807,2]
[329840251,1718736644896,-523.29,0.00017807,2]
[329840252,1718736644908,-1197.35,0.00017807,2]
[329840253,1718736644919,-500.0,0.00017807,2]
[329840254,1718736644930,-500.0,0.00017807,2]
[329840255,1718736644942,-500.0,0.00017807,2]
[329840256,1718736644953,-500.0,0.00017807,2]
[329840257,1718736644964,-500.0,0.00017808,2]
[329840258,1718736644975,-540.02088077,0.00017808,2]
[329840259,1718736644986,-500.0,0.00017808,2]
[329840260,1718736644996,-41.7524686,0.00017808,2]
[329840261,1718736645042,-500.0,0.00016712,2]
[329840262,1718736645053,-500.0,0.00016986,2]
[329840263,1718736645064,-500.0,0.00016986,2]
[329840264,1718736645076,-458.2475314,0.00017808,2]
[329840265,1718736645087,-500.0,0.00017808,2]
[329840266,1718736645098,-500.0,0.00017808,2]
[329840267,1718736645110,-500.0,0.00017808,2]
[329840268,1718736645121,-208.86252408,0.00017808,2]
[329840269,1718736645132,-500.0,0.00017808,2]
[329840270,1718736645143,-458.82282186,0.00017808,2]
[329840271,1718736645156,-158.47717814,0.00017808,2]
[329840272,1718736645167,-2318.12,0.00017808,2]
[329840273,1718736645178,-283.3,0.00017808,2]
[329840274,1718736645189,-512.78365537,0.00017808,2]
[329840275,1718736645201,-500.0,0.00017808,2]
[329840276,1718736645213,-500.0,0.00017808,2]
[329840277,1718736645223,-500.0,0.00017808,2]
[329840278,1718736645234,-2545.44354073,0.00017808,2]
[329840279,1718736645248,-791.02502001,0.00017808,2]
[329840280,1718736645263,-4980.92143926,0.00017808,2]
[329840281,1718736645275,-566.7194537,0.00017808,2]
[329840282,1718736645288,-500.0,0.00017808,2]
[329840283,1718736645301,-500.0,0.00017808,2]
[329840284,1718736645312,-4970.02,0.00017808,2]
[329840285,1718736645321,-650.55,0.00017808,2]
[329840286,1718736645331,-500.0,0.00017808,2]
[329840287,1718736645341,-1110.7729711,0.00017808,2]
[329840288,1718736645483,-706.4670289,0.00017808,2]
[329840289,1718736645494,-500.0,0.00017808,2]
[329840290,1718736645504,-425.6,0.00017808,2]
[329840291,1718736645516,-1058.09,0.00017808,2]
[329840292,1718736645527,-597.05,0.00017808,2]
[329840293,1718736645537,-500.0,0.00017808,2]
[329840294,1718736645547,-500.0,0.00017808,2]
[329840295,1718736645556,-500.0,0.00017808,2]
[329840296,1718736645566,-500.0,0.00017808,2]
[329840297,1718736645576,-1045.51,0.00017808,2]
[329840298,1718736645585,-642.7,0.00017808,2]
[329840299,1718736645595,-885.99,0.00017808,2]
[329840300,1718736645604,-500.0,0.00017808,2]
[329840301,1718736645614,-161.8,0.00018081,2]
[329840302,1718736645624,-1197.35,0.00018081,2]
[329840303,1718736645634,-563.89349169,0.00018081,2]
[329840304,1718736645643,-370.3,0.00018081,2]
[329840305,1718736645653,-500.0,0.00018082,2]
[329840306,1718736645662,-500.0,0.00018082,2]
[329840307,1718736645672,-500.0,0.00018082,2]
[329840308,1718736645682,-2318.12,0.00018082,2]
[329840309,1718736645692,-500.0,0.00018082,2]
[329840310,1718736645703,-258.73539528,0.00018082,2]
[329840311,1718736645713,-8317.39,0.00018082,2]
[329840312,1718736645722,-500.0,0.00018082,2]
[329840313,1718736645731,-500.0,0.00018082,2]
[329840314,1718736645742,-4970.02,0.00018082,2]
[329840315,1718736645751,-650.55,0.00018082,2]
[329840316,1718736645761,-1817.24,0.00018082,2]
[329840317,1718736645773,-500.0,0.00018082,2]
[329840318,1718736645782,-1058.09,0.00018082,2]
[329840319,1718736645792,-500.0,0.00018082,2]
[329840320,1718736645802,-500.0,0.00018082,2]
[329840321,1718736645811,-500.0,0.00018082,2]
[329840322,1718736645821,-1045.51,0.00018082,2]
[329840323,1718736645830,-885.99,0.00018082,2]
[329840324,1718736645839,-500.0,0.00018082,2]
[329840325,1718736645850,-500.0,0.00018326,2]
[329840326,1718736645860,-151.0,0.00018327,2]
[329840327,1718736645869,-151.0,0.00018327,2]
[329840328,1718736645878,-151.0,0.00018327,2]
[329840329,1718736645888,-151.0,0.00018327,2]
[329840330,1718736645898,-151.0,0.00018327,2]
[329840331,1718736645908,-151.0,0.00018327,2]
[329840332,1718736645918,-151.0,0.00018327,2]
[329840333,1718736645927,-151.0,0.00018327,2]
[329840334,1718736645938,-151.0,0.00018327,2]
[329840335,1718736645948,-151.0,0.00018327,2]
[329840336,1718736645960,-151.0,0.00018355,2]
[329840337,1718736645969,-151.0,0.00018355,2]
[329840338,1718736645979,-151.0,0.00018355,2]
[329840339,1718736645988,-1197.35,0.00018355,2]
[329840340,1718736645999,-151.0,0.00018355,2]
[329840341,1718736646008,-151.0,0.00018355,2]
[329840342,1718736646018,-500.0,0.00018355,2]
[329840343,1718736646028,-500.0,0.00018356,2]
[329840344,1718736646039,-500.0,0.00018356,2]